[Event "Titled Tuesday Blitz August 1 Late 2023"]
[White "Senft, Sean"]
[Black "Sun, Rick"]
[WhiteFideId "2044960"]
[BlackFideId "30909481"]
[WhiteElo "2353"]
[BlackElo "2624"]
[Result "0-1"]
[Round "3"]
[TimeControl "180+1"]
[Date "2023.08.01"]
[WhiteClock "0:00:54"]
[BlackClock "0:00:10"]
[Board "136"]

1. d4 {[%clk 0:03:00]}  Nf6 {[%clk 0:03:00]} 2. c4 {[%clk 0:03:00]}  g6 {[%clk 0:02:59]} 3. Nc3 {[%clk 0:03:01]}  Bg7 {[%clk 0:03:00]} 4. e4 {[%clk 0:03:02]}  O-O {[%clk 0:03:00]} 5. f4 {[%clk 0:03:02]}  d6 {[%clk 0:03:01]} 6. Nf3 {[%clk 0:03:03]}  Na6 {[%clk 0:03:02]} 7. Bd3 {[%clk 0:03:04]}  e5 {[%clk 0:03:02]} 8. fxe5 {[%clk 0:03:04]}  dxe5 {[%clk 0:03:03]} 9. d5 {[%clk 0:03:04]}  Nc5 {[%clk 0:03:04]} 10. Bc2 {[%clk 0:03:04]}  Nh5 {[%clk 0:03:01]} 11. O-O {[%clk 0:03:04]}  f5 {[%clk 0:02:45]} 12. b4 {[%clk 0:02:42]}  Nxe4 {[%clk 0:02:43]} 13. Nxe4 {[%clk 0:02:42]}  fxe4 {[%clk 0:02:43]} 14. Bxe4 {[%clk 0:02:43]}  Nf4 {[%clk 0:02:36]} 15. Bb2 {[%clk 0:02:31]}  Bg4 {[%clk 0:02:19]} 16. Qd2 {[%clk 0:02:22]}  Bxf3 {[%clk 0:01:49]} 17. Rxf3 {[%clk 0:02:22]}  Qh4 {[%clk 0:01:45]} 18. Kh1 {[%clk 0:02:12]}  Nh5 {[%clk 0:01:23]} 19. Qd3 {[%clk 0:01:58]}  Rxf3 {[%clk 0:01:13]} 20. gxf3 {[%clk 0:01:45]}  Rf8 {[%clk 0:00:44]} 21. c5 {[%clk 0:01:43]}  Ng3+ {[%clk 0:00:25]} 22. Kg2 {[%clk 0:01:40]}  Nxe4 {[%clk 0:00:24]} 23. Qxe4 {[%clk 0:01:38]}  Rf4 {[%clk 0:00:25]} 24. Qe1 {[%clk 0:01:26]}  Qh5 {[%clk 0:00:23]} 25. Qg3 {[%clk 0:01:22]}  Rxb4 {[%clk 0:00:19]} 26. Bc3 {[%clk 0:00:55]}  Rc4 {[%clk 0:00:19]} 27. Qe1 {[%clk 0:00:56]}  e4 {[%clk 0:00:13]} 28. fxe4 {[%clk 0:00:55]}  Bxc3 {[%clk 0:00:12]} 29. Qf1 {[%clk 0:00:55]}  Qg4+ {[%clk 0:00:10]} 30. Kh1 {[%clk 0:00:54]}  Qxe4+ {[%clk 0:00:10]} 31. Qg2 {[%clk 0:00:54]}  Qxg2+ {[%clk 0:00:10]} 32. Kxg2 {[%clk 0:00:54]}  Bxa1 {[%clk 0:00:10]} 0-1


[Site "https://www.chess.com"]

[Event "Titled Tuesday Blitz August 1 Late 2023"]
[White "Womacka, Mathias"]
[Black "Li, Hui"]
[WhiteFideId "4611390"]
[BlackFideId "15400310"]
[WhiteElo "2536"]
[BlackElo "2370"]
[Result "1-0"]
[Round "3"]
[TimeControl "180+1"]
[Date "2023.08.01"]
[WhiteClock "0:00:18"]
[BlackClock "0:00:00"]
[Board "137"]

1. e4 {[%clk 0:03:00]}  e5 {[%clk 0:02:59]} 2. Nf3 {[%clk 0:02:59]}  Nf6 {[%clk 0:03:00]} 3. Nxe5 {[%clk 0:02:58]}  d6 {[%clk 0:03:00]} 4. Nf3 {[%clk 0:02:59]}  Nxe4 {[%clk 0:03:00]} 5. d4 {[%clk 0:02:59]}  d5 {[%clk 0:03:01]} 6. Bd3 {[%clk 0:03:00]}  Be7 {[%clk 0:03:01]} 7. O-O {[%clk 0:03:00]}  Nc6 {[%clk 0:03:01]} 8. c4 {[%clk 0:02:59]}  Nb4 {[%clk 0:03:02]} 9. Be2 {[%clk 0:03:00]}  O-O {[%clk 0:03:02]} 10. Nc3 {[%clk 0:03:00]}  Bf5 {[%clk 0:03:01]} 11. a3 {[%clk 0:02:49]}  Nxc3 {[%clk 0:03:01]} 12. bxc3 {[%clk 0:02:50]}  Nc6 {[%clk 0:03:02]} 13. cxd5 {[%clk 0:02:50]}  Qxd5 {[%clk 0:03:03]} 14. Bf4 {[%clk 0:02:50]}  Bd6 {[%clk 0:02:53]} 15. c4 {[%clk 0:02:47]}  Qe4 {[%clk 0:02:53]} 16. Bxd6 {[%clk 0:02:46]}  cxd6 {[%clk 0:02:54]} 17. Qd2 {[%clk 0:02:30]}  Qc2 {[%clk 0:02:43]} 18. Qxc2 {[%clk 0:02:23]}  Bxc2 {[%clk 0:02:44]} 19. d5 {[%clk 0:02:23]}  Ne7 {[%clk 0:02:07]} 20. Nd4 {[%clk 0:02:22]}  Bg6 {[%clk 0:02:07]} 21. Nb5 {[%clk 0:02:09]}  Rfd8 {[%clk 0:02:06]} 22. Rfe1 {[%clk 0:02:03]}  Kf8 {[%clk 0:02:01]} 23. Bf1 {[%clk 0:01:53]}  Nc8 {[%clk 0:01:50]} 24. Ra2 {[%clk 0:01:46]}  Nb6 {[%clk 0:01:47]} 25. a4 {[%clk 0:01:34]}  a6 {[%clk 0:01:29]} 26. Nd4 {[%clk 0:01:28]}  Nd7 {[%clk 0:01:26]} 27. f4 {[%clk 0:01:15]}  Nc5 {[%clk 0:00:52]} 28. f5 {[%clk 0:01:14]}  Bh5 {[%clk 0:00:52]} 29. h3 {[%clk 0:01:10]}  f6 {[%clk 0:00:52]} 30. Ne6+ {[%clk 0:01:01]}  Nxe6 {[%clk 0:00:52]} 31. dxe6 {[%clk 0:01:02]}  Ke7 {[%clk 0:00:51]} 32. Rb1 {[%clk 0:00:57]}  Rab8 {[%clk 0:00:37]} 33. Rab2 {[%clk 0:00:57]}  b5 {[%clk 0:00:25]} 34. axb5 {[%clk 0:00:52]}  axb5 {[%clk 0:00:26]} 35. Rxb5 {[%clk 0:00:50]}  Rxb5 {[%clk 0:00:27]} 36. Rxb5 {[%clk 0:00:51]}  Rc8 {[%clk 0:00:06]} 37. Rb7+ {[%clk 0:00:50]}  Kf8 {[%clk 0:00:04]} 38. Kf2 {[%clk 0:00:39]}  Be8 {[%clk 0:00:04]} 39. Ke3 {[%clk 0:00:38]}  Bc6 {[%clk 0:00:05]} 40. Rf7+ {[%clk 0:00:34]}  Kg8 {[%clk 0:00:05]} 41. Ra7 {[%clk 0:00:33]}  Kf8 {[%clk 0:00:04]} 42. g4 {[%clk 0:00:31]}  h6 {[%clk 0:00:02]} 43. Kd4 {[%clk 0:00:29]}  Rb8 {[%clk 0:00:01]} 44. Bd3 {[%clk 0:00:24]}  Rc8 {[%clk 0:00:01]} 45. Bc2 {[%clk 0:00:19]}  Rb8 {[%clk 0:00:00]} 46. Ba4 {[%clk 0:00:18]} 1-0


[Site "https://www.chess.com"]

[Event "Titled Tuesday Blitz August 1 Late 2023"]
[White "Gasparyan, David"]
[Black "Skuhala, Barbara"]
[WhiteFideId "13311980"]
[BlackFideId "14605465"]
[WhiteElo "2501"]
[BlackElo "2319"]
[Result "1-0"]
[Round "3"]
[TimeControl "180+1"]
[Date "2023.08.01"]
[WhiteClock "0:01:35"]
[BlackClock "0:01:40"]
[Board "138"]

1. d4 {[%clk 0:03:00]}  Nf6 {[%clk 0:02:54]} 2. e3 {[%clk 0:02:57]}  e6 {[%clk 0:02:49]} 3. Bd3 {[%clk 0:02:57]}  d5 {[%clk 0:02:48]} 4. b3 {[%clk 0:02:57]}  Be7 {[%clk 0:02:46]} 5. Bb2 {[%clk 0:02:57]}  O-O {[%clk 0:02:47]} 6. Nd2 {[%clk 0:02:57]}  b6 {[%clk 0:02:48]} 7. Ngf3 {[%clk 0:02:56]}  c5 {[%clk 0:02:48]} 8. O-O {[%clk 0:02:56]}  Ba6 {[%clk 0:02:48]} 9. Bxa6 {[%clk 0:02:51]}  Nxa6 {[%clk 0:02:48]} 10. c4 {[%clk 0:02:51]}  Nb8 {[%clk 0:02:47]} 11. Ne5 {[%clk 0:02:51]}  Nfd7 {[%clk 0:02:47]} 12. Ndf3 {[%clk 0:02:42]}  f6 {[%clk 0:02:46]} 13. Nd3 {[%clk 0:02:41]}  Nc6 {[%clk 0:02:45]} 14. Nf4 {[%clk 0:02:41]}  Qc8 {[%clk 0:02:36]} 15. Nxe6 {[%clk 0:02:39]}  Re8 {[%clk 0:02:37]} 16. cxd5 {[%clk 0:02:38]}  Nb4 {[%clk 0:02:37]} 17. dxc5 {[%clk 0:02:34]}  Nxc5 {[%clk 0:02:36]} 18. Nf4 {[%clk 0:02:28]}  Bd6 {[%clk 0:02:34]} 19. a3 {[%clk 0:02:15]}  Nba6 {[%clk 0:02:34]} 20. Rc1 {[%clk 0:02:12]}  Qf5 {[%clk 0:02:32]} 21. Nd4 {[%clk 0:02:11]}  Qg5 {[%clk 0:02:30]} 22. Nfe6 {[%clk 0:02:06]}  Qh6 {[%clk 0:02:28]} 23. g3 {[%clk 0:02:03]}  Ne4 {[%clk 0:02:18]} 24. Nf5 {[%clk 0:02:01]}  Qg6 {[%clk 0:02:16]} 25. Nfxg7 {[%clk 0:02:00]}  Re7 {[%clk 0:02:17]} 26. Nh5 {[%clk 0:01:53]}  Rae8 {[%clk 0:01:50]} 27. Qf3 {[%clk 0:01:42]}  Nd2 {[%clk 0:01:48]} 28. Nxf6+ {[%clk 0:01:42]}  Kh8 {[%clk 0:01:46]} 29. Qe2 {[%clk 0:01:36]}  Nxf1 {[%clk 0:01:43]} 30. Nxe8+ {[%clk 0:01:36]}  Kg8 {[%clk 0:01:40]} 31. Nxd6 {[%clk 0:01:35]} 1-0


[Site "https://www.chess.com"]

[Event "Titled Tuesday Blitz August 1 Late 2023"]
[White "Tqebuchava, Zurab"]
[Black "ArchibaldCerveza29"]
[WhiteFideId "13601113"]
[WhiteElo "2272"]
[BlackElo "2472"]
[Result "0-1"]
[Round "3"]
[TimeControl "180+1"]
[Date "2023.08.01"]
[WhiteClock "0:00:00"]
[BlackClock "0:00:32"]
[Board "140"]

1. e4 {[%clk 0:03:00]}  c6 {[%clk 0:02:56]} 2. d3 {[%clk 0:02:59]}  d5 {[%clk 0:02:55]} 3. Nd2 {[%clk 0:02:59]}  e5 {[%clk 0:02:55]} 4. Ngf3 {[%clk 0:02:58]}  Bd6 {[%clk 0:02:54]} 5. Be2 {[%clk 0:02:57]}  f5 {[%clk 0:02:54]} 6. exd5 {[%clk 0:02:54]}  cxd5 {[%clk 0:02:53]} 7. O-O {[%clk 0:02:39]}  Nc6 {[%clk 0:02:53]} 8. c4 {[%clk 0:02:38]}  d4 {[%clk 0:02:49]} 9. Re1 {[%clk 0:02:32]}  Nf6 {[%clk 0:02:46]} 10. Bf1 {[%clk 0:02:29]}  O-O {[%clk 0:02:44]} 11. b4 {[%clk 0:02:23]}  Bxb4 {[%clk 0:02:17]} 12. Nxe5 {[%clk 0:02:19]}  Nxe5 {[%clk 0:02:18]} 13. Rxe5 {[%clk 0:02:19]}  Bd6 {[%clk 0:02:05]} 14. Re1 {[%clk 0:02:10]}  Ng4 {[%clk 0:02:05]} 15. Nf3 {[%clk 0:01:56]}  Qc7 {[%clk 0:01:43]} 16. g3 {[%clk 0:01:39]}  f4 {[%clk 0:01:42]} 17. Bg2 {[%clk 0:01:29]}  fxg3 {[%clk 0:01:35]} 18. hxg3 {[%clk 0:01:14]}  Bxg3 {[%clk 0:01:26]} 19. fxg3 {[%clk 0:01:07]}  Qxg3 {[%clk 0:01:27]} 20. Qe2 {[%clk 0:00:49]}  Rxf3 {[%clk 0:01:14]} 21. Qxf3 {[%clk 0:00:32]}  Qxe1+ {[%clk 0:01:12]} 22. Qf1 {[%clk 0:00:31]}  Qxf1+ {[%clk 0:00:59]} 23. Kxf1 {[%clk 0:00:29]}  Bf5 {[%clk 0:00:59]} 24. Ke2 {[%clk 0:00:23]}  Re8+ {[%clk 0:00:57]} 25. Kd2 {[%clk 0:00:23]}  Nf2 {[%clk 0:00:56]} 26. Ba3 {[%clk 0:00:17]}  Bxd3 {[%clk 0:00:37]} 27. Bd5+ {[%clk 0:00:14]}  Kh8 {[%clk 0:00:34]} 28. Re1 {[%clk 0:00:12]}  Rxe1 {[%clk 0:00:33]} 29. Kxe1 {[%clk 0:00:12]}  Ne4 {[%clk 0:00:33]} 30. Bb2 {[%clk 0:00:09]}  Nc3 {[%clk 0:00:33]} 31. Kd2 {[%clk 0:00:08]}  Be4 {[%clk 0:00:30]} 32. Bxc3 {[%clk 0:00:07]}  dxc3+ {[%clk 0:00:30]} 33. Kxc3 {[%clk 0:00:07]}  Bxd5 {[%clk 0:00:31]} 34. cxd5 {[%clk 0:00:07]}  Kg8 {[%clk 0:00:32]} 35. Kd4 {[%clk 0:00:07]}  Kf8 {[%clk 0:00:32]} 36. Ke5 {[%clk 0:00:00]}  Ke7 {[%clk 0:00:32]} 0-1


[Site "https://www.chess.com"]

[Event "Titled Tuesday Blitz August 1 Late 2023"]
[White "Schut, Han"]
[Black "ExchangeAB"]
[WhiteFideId "1005561"]
[WhiteElo "2267"]
[BlackElo "2463"]
[Result "0-1"]
[Round "3"]
[TimeControl "180+1"]
[Date "2023.08.01"]
[WhiteClock "0:00:35"]
[BlackClock "0:01:47"]
[Board "141"]

1. e4 {[%clk 0:03:00]}  c6 {[%clk 0:03:00]} 2. d4 {[%clk 0:03:00]}  d5 {[%clk 0:03:01]} 3. exd5 {[%clk 0:03:00]}  cxd5 {[%clk 0:03:01]} 4. c4 {[%clk 0:03:01]}  Nf6 {[%clk 0:03:02]} 5. Nc3 {[%clk 0:03:01]}  e6 {[%clk 0:03:03]} 6. Nf3 {[%clk 0:03:01]}  Bb4 {[%clk 0:03:03]} 7. cxd5 {[%clk 0:03:00]}  Nxd5 {[%clk 0:03:03]} 8. Qc2 {[%clk 0:03:01]}  Nc6 {[%clk 0:03:03]} 9. a3 {[%clk 0:02:56]}  Be7 {[%clk 0:03:02]} 10. Bd3 {[%clk 0:02:54]}  Bf6 {[%clk 0:02:56]} 11. Bxh7 {[%clk 0:02:49]}  Nxd4 {[%clk 0:02:43]} 12. Nxd4 {[%clk 0:02:48]}  Bxd4 {[%clk 0:02:42]} 13. Nxd5 {[%clk 0:02:29]}  Qxd5 {[%clk 0:02:31]} 14. Be4 {[%clk 0:02:25]}  Qe5 {[%clk 0:02:16]} 15. f4 {[%clk 0:02:12]}  Qc5 {[%clk 0:02:09]} 16. Qxc5 {[%clk 0:01:56]}  Bxc5 {[%clk 0:02:09]} 17. Bd2 {[%clk 0:01:53]}  Rb8 {[%clk 0:02:07]} 18. Bc3 {[%clk 0:01:45]}  f6 {[%clk 0:02:04]} 19. Bg6+ {[%clk 0:01:34]}  Ke7 {[%clk 0:02:04]} 20. Ke2 {[%clk 0:01:15]}  Bd7 {[%clk 0:02:02]} 21. Be4 {[%clk 0:01:14]}  Bb5+ {[%clk 0:02:01]} 22. Kd2 {[%clk 0:00:48]}  Rbd8+ {[%clk 0:01:59]} 23. Kc2 {[%clk 0:00:48]}  Rd7 {[%clk 0:01:50]} 24. Rad1 {[%clk 0:00:45]}  Rhd8 {[%clk 0:01:49]} 25. Rxd7+ {[%clk 0:00:43]}  Rxd7 {[%clk 0:01:50]} 26. Rd1 {[%clk 0:00:39]}  Ba4+ {[%clk 0:01:48]} 27. b3 {[%clk 0:00:35]}  Bxb3+ {[%clk 0:01:47]} 0-1


[Site "https://www.chess.com"]

[Event "Titled Tuesday Blitz August 1 Late 2023"]
[White "Bashylina, Luisa"]
[Black "Urbina Perez, Juan Antonio"]
[WhiteFideId "12983292"]
[BlackFideId "2217368"]
[WhiteElo "2227"]
[BlackElo "2462"]
[Result "1-0"]
[Round "3"]
[TimeControl "180+1"]
[Date "2023.08.01"]
[WhiteClock "0:00:14"]
[BlackClock "0:00:01"]
[Board "142"]

1. e4 {[%clk 0:02:59]}  c5 {[%clk 0:02:58]} 2. Nf3 {[%clk 0:02:59]}  d6 {[%clk 0:02:57]} 3. g3 {[%clk 0:02:53]}  g6 {[%clk 0:02:56]} 4. Bg2 {[%clk 0:02:53]}  Bg7 {[%clk 0:02:57]} 5. O-O {[%clk 0:02:53]}  Nc6 {[%clk 0:02:57]} 6. Re1 {[%clk 0:02:51]}  Nf6 {[%clk 0:02:57]} 7. c3 {[%clk 0:02:50]}  e5 {[%clk 0:02:56]} 8. d3 {[%clk 0:02:48]}  O-O {[%clk 0:02:55]} 9. Be3 {[%clk 0:02:48]}  Rb8 {[%clk 0:02:53]} 10. h3 {[%clk 0:02:48]}  b5 {[%clk 0:02:50]} 11. Nbd2 {[%clk 0:02:49]}  a5 {[%clk 0:02:50]} 12. Nf1 {[%clk 0:02:24]}  b4 {[%clk 0:02:49]} 13. Bg5 {[%clk 0:02:24]}  h6 {[%clk 0:02:47]} 14. Bxf6 {[%clk 0:02:22]}  Bxf6 {[%clk 0:02:46]} 15. Ne3 {[%clk 0:02:22]}  Bg7 {[%clk 0:02:43]} 16. Nd2 {[%clk 0:02:07]}  Be6 {[%clk 0:02:37]} 17. Nd5 {[%clk 0:01:59]}  Ne7 {[%clk 0:02:34]} 18. Nc4 {[%clk 0:01:55]}  Nxd5 {[%clk 0:02:13]} 19. exd5 {[%clk 0:01:56]}  Bc8 {[%clk 0:02:13]} 20. Qe2 {[%clk 0:01:48]}  Ba6 {[%clk 0:02:11]} 21. Nd2 {[%clk 0:01:37]}  bxc3 {[%clk 0:02:05]} 22. bxc3 {[%clk 0:01:37]}  e4 {[%clk 0:02:03]} 23. Nxe4 {[%clk 0:01:22]}  Re8 {[%clk 0:01:53]} 24. Qc2 {[%clk 0:01:16]}  f5 {[%clk 0:01:43]} 25. Nd2 {[%clk 0:01:16]}  Qf6 {[%clk 0:01:42]} 26. Rxe8+ {[%clk 0:00:57]}  Rxe8 {[%clk 0:01:43]} 27. Rc1 {[%clk 0:00:57]}  h5 {[%clk 0:01:11]} 28. Qa4 {[%clk 0:00:57]}  Re2 {[%clk 0:01:05]} 29. Qxa5 {[%clk 0:00:51]}  Bxd3 {[%clk 0:01:01]} 30. Nf3 {[%clk 0:00:49]}  Be4 {[%clk 0:00:55]} 31. Nh4 {[%clk 0:00:46]}  g5 {[%clk 0:00:43]} 32. Nf3 {[%clk 0:00:38]}  f4 {[%clk 0:00:32]} 33. g4 {[%clk 0:00:26]}  hxg4 {[%clk 0:00:30]} 34. hxg4 {[%clk 0:00:27]}  Qe7 {[%clk 0:00:25]} 35. Qb5 {[%clk 0:00:13]}  Bxd5 {[%clk 0:00:23]} 36. Qd3 {[%clk 0:00:12]}  Bxa2 {[%clk 0:00:16]} 37. Rd1 {[%clk 0:00:12]}  d5 {[%clk 0:00:14]} 38. Nxg5 {[%clk 0:00:11]}  Re1+ {[%clk 0:00:10]} 39. Rxe1 {[%clk 0:00:11]}  Qxe1+ {[%clk 0:00:11]} 40. Kh2 {[%clk 0:00:12]}  f3 {[%clk 0:00:10]} 41. Qh7+ {[%clk 0:00:12]}  Kf8 {[%clk 0:00:10]} 42. Qf5+ {[%clk 0:00:12]}  Ke8 {[%clk 0:00:09]} 43. Qf7+ {[%clk 0:00:12]}  Kd8 {[%clk 0:00:08]} 44. Ne6+ {[%clk 0:00:13]}  Qxe6 {[%clk 0:00:04]} 45. Qxe6 {[%clk 0:00:13]}  fxg2 {[%clk 0:00:04]} 46. Qd6+ {[%clk 0:00:13]}  Ke8 {[%clk 0:00:03]} 47. Qb8+ {[%clk 0:00:13]}  Kf7 {[%clk 0:00:03]} 48. Qa7+ {[%clk 0:00:13]}  Kg8 {[%clk 0:00:03]} 49. Qxa2 {[%clk 0:00:14]}  Bxc3 {[%clk 0:00:01]} 50. Qxd5+ {[%clk 0:00:14]} 1-0


[Site "https://www.chess.com"]

[Event "Titled Tuesday Blitz August 1 Late 2023"]
[White "De Souza, Cristiano Gomes"]
[Black "szachmistrz2500"]
[WhiteFideId "2151758"]
[WhiteElo "2218"]
[BlackElo "2462"]
[Result "1-0"]
[Round "3"]
[TimeControl "180+1"]
[Date "2023.08.01"]
[WhiteClock "0:00:55"]
[BlackClock "0:00:13"]
[Board "143"]

1. d4 {[%clk 0:02:58]}  c5 {[%clk 0:02:58]} 2. d5 {[%clk 0:02:58]}  e5 {[%clk 0:02:57]} 3. c4 {[%clk 0:02:58]}  d6 {[%clk 0:02:57]} 4. Nc3 {[%clk 0:02:59]}  a6 {[%clk 0:02:55]} 5. e4 {[%clk 0:02:59]}  g6 {[%clk 0:02:54]} 6. Be2 {[%clk 0:02:53]}  Bg7 {[%clk 0:02:50]} 7. Nf3 {[%clk 0:02:53]}  Ne7 {[%clk 0:02:49]} 8. O-O {[%clk 0:02:54]}  O-O {[%clk 0:02:49]} 9. Ne1 {[%clk 0:02:54]}  f5 {[%clk 0:02:47]} 10. Nd3 {[%clk 0:02:54]}  f4 {[%clk 0:02:40]} 11. Bg4 {[%clk 0:02:53]}  h5 {[%clk 0:02:40]} 12. Bxc8 {[%clk 0:02:52]}  Qxc8 {[%clk 0:02:40]} 13. f3 {[%clk 0:02:52]}  Nd7 {[%clk 0:02:39]} 14. a3 {[%clk 0:02:51]}  g5 {[%clk 0:02:37]} 15. Bd2 {[%clk 0:02:52]}  Nf6 {[%clk 0:02:33]} 16. Rc1 {[%clk 0:02:51]}  g4 {[%clk 0:02:30]} 17. fxg4 {[%clk 0:02:46]}  hxg4 {[%clk 0:02:29]} 18. g3 {[%clk 0:02:46]}  f3 {[%clk 0:02:27]} 19. Nf2 {[%clk 0:02:45]}  Qd7 {[%clk 0:02:22]} 20. Be3 {[%clk 0:02:43]}  b5 {[%clk 0:02:15]} 21. cxb5 {[%clk 0:02:41]}  axb5 {[%clk 0:02:15]} 22. Qd2 {[%clk 0:02:41]}  Kf7 {[%clk 0:01:48]} 23. Bh6 {[%clk 0:02:19]}  Rh8 {[%clk 0:01:44]} 24. Bxg7 {[%clk 0:02:18]}  Kxg7 {[%clk 0:01:45]} 25. Qg5+ {[%clk 0:02:17]}  Ng6 {[%clk 0:01:45]} 26. Ncd1 {[%clk 0:02:11]}  Rh5 {[%clk 0:01:43]} 27. Qd2 {[%clk 0:02:01]}  Rah8 {[%clk 0:01:41]} 28. h4 {[%clk 0:01:40]}  gxh3 {[%clk 0:01:41]} 29. Kh2 {[%clk 0:01:39]}  Rg8 {[%clk 0:01:17]} 30. Rc3 {[%clk 0:01:37]}  Ng4+ {[%clk 0:01:10]} 31. Nxg4 {[%clk 0:01:36]}  Qxg4 {[%clk 0:01:11]} 32. Rcxf3 {[%clk 0:01:35]}  Qxe4 {[%clk 0:01:11]} 33. Nc3 {[%clk 0:01:24]}  Qc4 {[%clk 0:01:05]} 34. Qe3 {[%clk 0:01:13]}  Kh8 {[%clk 0:01:00]} 35. Ne4 {[%clk 0:01:03]}  Kg7 {[%clk 0:00:14]} 36. Nf6 {[%clk 0:00:57]}  Rhh8 {[%clk 0:00:13]} 37. Nxg8 {[%clk 0:00:57]}  Rxg8 {[%clk 0:00:13]} 38. Rf7+ {[%clk 0:00:55]}  Kh8 {[%clk 0:00:13]} 39. Qh6# {[%clk 0:00:55]} 1-0


[Site "https://www.chess.com"]

[Event "Titled Tuesday Blitz August 1 Late 2023"]
[White "BeautiFullMindChess"]
[Black "Goncalves, Davi Sulzbacher"]
[BlackFideId "2154510"]
[WhiteElo "2210"]
[BlackElo "2458"]
[Result "1-0"]
[Round "3"]
[TimeControl "180+1"]
[Date "2023.08.01"]
[WhiteClock "0:00:21"]
[BlackClock "0:00:19"]
[Board "144"]

1. e4 {[%clk 0:02:57]}  c5 {[%clk 0:02:59]} 2. Nf3 {[%clk 0:02:55]}  d6 {[%clk 0:02:59]} 3. Bc4 {[%clk 0:02:51]}  Nf6 {[%clk 0:02:58]} 4. d3 {[%clk 0:02:51]}  g6 {[%clk 0:02:57]} 5. c3 {[%clk 0:02:51]}  Bg7 {[%clk 0:02:57]} 6. Bb3 {[%clk 0:02:51]}  O-O {[%clk 0:02:57]} 7. O-O {[%clk 0:02:51]}  Nc6 {[%clk 0:02:56]} 8. h3 {[%clk 0:02:51]}  b6 {[%clk 0:02:53]} 9. Nbd2 {[%clk 0:02:51]}  Bb7 {[%clk 0:02:48]} 10. Re1 {[%clk 0:02:51]}  Qc7 {[%clk 0:02:46]} 11. Nf1 {[%clk 0:02:50]}  Rad8 {[%clk 0:02:38]} 12. Ng3 {[%clk 0:02:50]}  e5 {[%clk 0:02:31]} 13. Bg5 {[%clk 0:02:48]}  h6 {[%clk 0:02:29]} 14. Bxf6 {[%clk 0:02:48]}  Bxf6 {[%clk 0:02:30]} 15. Nf1 {[%clk 0:02:48]}  Na5 {[%clk 0:02:28]} 16. Ne3 {[%clk 0:02:35]}  Nxb3 {[%clk 0:02:25]} 17. axb3 {[%clk 0:02:33]}  Bc6 {[%clk 0:02:19]} 18. c4 {[%clk 0:02:33]}  Bg7 {[%clk 0:02:17]} 19. h4 {[%clk 0:02:29]}  f5 {[%clk 0:02:15]} 20. h5 {[%clk 0:02:12]}  fxe4 {[%clk 0:02:12]} 21. Nh4 {[%clk 0:01:36]}  g5 {[%clk 0:01:48]} 22. Ng6 {[%clk 0:01:29]}  Rf7 {[%clk 0:01:19]} 23. dxe4 {[%clk 0:00:59]}  Bxe4 {[%clk 0:01:19]} 24. Nd5 {[%clk 0:00:59]}  Bxd5 {[%clk 0:01:19]} 25. Qxd5 {[%clk 0:00:59]}  Qb7 {[%clk 0:00:55]} 26. Qe6 {[%clk 0:00:44]}  Qd7 {[%clk 0:00:41]} 27. Qd5 {[%clk 0:00:43]}  a5 {[%clk 0:00:36]} 28. Rad1 {[%clk 0:00:40]}  Kh7 {[%clk 0:00:30]} 29. Rd3 {[%clk 0:00:24]}  Qg4 {[%clk 0:00:19]} 30. Qxf7 {[%clk 0:00:21]} 1-0


[Site "https://www.chess.com"]

[Event "Titled Tuesday Blitz August 1 Late 2023"]
[White "KrokerGuy"]
[Black "Penagalapati, Abhinav"]
[BlackFideId "30938210"]
[WhiteElo "2426"]
[BlackElo "2065"]
[Result "1-0"]
[Round "3"]
[TimeControl "180+1"]
[Date "2023.08.01"]
[WhiteClock "0:00:06"]
[BlackClock "0:00:09"]
[Board "146"]

1. e4 {[%clk 0:02:58]}  Nf6 {[%clk 0:02:58]} 2. e5 {[%clk 0:02:58]}  Nd5 {[%clk 0:02:59]} 3. Nf3 {[%clk 0:02:58]}  d6 {[%clk 0:02:59]} 4. d4 {[%clk 0:02:59]}  dxe5 {[%clk 0:02:55]} 5. Nxe5 {[%clk 0:03:00]}  g6 {[%clk 0:02:53]} 6. Bc4 {[%clk 0:02:55]}  c6 {[%clk 0:02:53]} 7. O-O {[%clk 0:02:55]}  Bg7 {[%clk 0:02:53]} 8. Re1 {[%clk 0:02:48]}  O-O {[%clk 0:02:52]} 9. Nc3 {[%clk 0:02:37]}  Bf5 {[%clk 0:02:29]} 10. Bb3 {[%clk 0:01:48]}  Na6 {[%clk 0:02:19]} 11. Nf3 {[%clk 0:01:32]}  Nac7 {[%clk 0:02:13]} 12. Bg5 {[%clk 0:01:29]}  Re8 {[%clk 0:02:04]} 13. Qe2 {[%clk 0:01:21]}  h6 {[%clk 0:01:38]} 14. Bh4 {[%clk 0:01:05]}  Ne6 {[%clk 0:01:23]} 15. Rad1 {[%clk 0:00:59]}  Nef4 {[%clk 0:01:17]} 16. Qd2 {[%clk 0:00:42]}  g5 {[%clk 0:00:54]} 17. Bg3 {[%clk 0:00:38]}  Ng6 {[%clk 0:00:54]} 18. h4 {[%clk 0:00:29]}  g4 {[%clk 0:00:47]} 19. Ne5 {[%clk 0:00:21]}  Nxe5 {[%clk 0:00:38]} 20. Bxe5 {[%clk 0:00:20]}  f6 {[%clk 0:00:38]} 21. Bf4 {[%clk 0:00:11]}  Kh7 {[%clk 0:00:38]} 22. Nxd5 {[%clk 0:00:10]}  cxd5 {[%clk 0:00:38]} 23. c3 {[%clk 0:00:08]}  Qd7 {[%clk 0:00:38]} 24. Re2 {[%clk 0:00:05]}  e5 {[%clk 0:00:16]} 25. Bg3 {[%clk 0:00:05]}  e4 {[%clk 0:00:10]} 26. Bf4 {[%clk 0:00:03]}  Bg6 {[%clk 0:00:09]} 27. g3 {[%clk 0:00:04]}  h5 {[%clk 0:00:09]} 28. Kg2 {[%clk 0:00:04]}  Re6 {[%clk 0:00:10]} 29. Rde1 {[%clk 0:00:04]}  Rae8 {[%clk 0:00:10]} 30. c4 {[%clk 0:00:04]}  dxc4 {[%clk 0:00:09]} 31. Bxc4 {[%clk 0:00:05]}  Rc6 {[%clk 0:00:09]} 32. Bb5 {[%clk 0:00:05]}  Qd5 {[%clk 0:00:10]} 33. Bxc6 {[%clk 0:00:05]}  Qxc6 {[%clk 0:00:11]} 34. Kg1 {[%clk 0:00:04]}  Rd8 {[%clk 0:00:10]} 35. Qe3 {[%clk 0:00:03]}  Bf8 {[%clk 0:00:11]} 36. Rd1 {[%clk 0:00:03]}  Qd5 {[%clk 0:00:11]} 37. b3 {[%clk 0:00:03]}  Bb4 {[%clk 0:00:11]} 38. Rc2 {[%clk 0:00:03]}  Ba3 {[%clk 0:00:12]} 39. Rc4 {[%clk 0:00:04]}  Qa5 {[%clk 0:00:11]} 40. Rd2 {[%clk 0:00:04]}  Rd7 {[%clk 0:00:12]} 41. Rdc2 {[%clk 0:00:05]}  Be7 {[%clk 0:00:12]} 42. Rc7 {[%clk 0:00:06]}  Qa3 {[%clk 0:00:09]} 43. Rxd7 {[%clk 0:00:06]} 1-0


[Site "https://www.chess.com"]

[Event "Titled Tuesday Blitz August 1 Late 2023"]
[White "Ortega Amarelle, Mariano"]
[Black "SicilianPanzer"]
[WhiteFideId "3504301"]
[WhiteElo "2514"]
[BlackElo "2316"]
[Result "1-0"]
[Round "3"]
[TimeControl "180+1"]
[Date "2023.08.01"]
[WhiteClock "0:02:28"]
[BlackClock "0:02:11"]
[Board "152"]

1. Nf3 {[%clk 0:02:59]}  Nf6 {[%clk 0:02:58]} 2. b3 {[%clk 0:02:56]}  g6 {[%clk 0:02:55]} 3. Bb2 {[%clk 0:02:57]}  Bg7 {[%clk 0:02:54]} 4. g3 {[%clk 0:02:57]}  O-O {[%clk 0:02:53]} 5. Bg2 {[%clk 0:02:57]}  d5 {[%clk 0:02:52]} 6. O-O {[%clk 0:02:55]}  c5 {[%clk 0:02:52]} 7. e3 {[%clk 0:02:54]}  b6 {[%clk 0:02:51]} 8. c4 {[%clk 0:02:53]}  Bb7 {[%clk 0:02:46]} 9. d3 {[%clk 0:02:53]}  dxc4 {[%clk 0:02:39]} 10. bxc4 {[%clk 0:02:53]}  Nc6 {[%clk 0:02:34]} 11. Qe2 {[%clk 0:02:52]}  Qc7 {[%clk 0:02:34]} 12. Nc3 {[%clk 0:02:48]}  a6 {[%clk 0:02:34]} 13. Nd5 {[%clk 0:02:39]}  Nxd5 {[%clk 0:02:26]} 14. cxd5 {[%clk 0:02:33]}  Bxb2 {[%clk 0:02:11]} 15. dxc6 {[%clk 0:02:28]} 1-0


[Site "https://www.chess.com"]